[Event "Titled Tuesday Blitz May 10 Early 2022"]
[White "De Souza, Cristiano Gomes"]
[Black "Pourkashiyan, Atousa"]
[WhiteFideId "2151758"]
[BlackFideId "12502014"]
[WhiteElo "2068"]
[BlackElo "2247"]
[Result "1-0"]
[Round "04"]
[TimeControl "180+1"]
[Date "2022.05.11"]
[WhiteClock "0:00:18"]
[BlackClock "0:01:05"]

1. d4 {[%clk 0:03:00]}  Nf6 {[%clk 0:02:54]} 2. c4 {[%clk 0:02:59]}  e6 {[%clk 0:02:54]} 3. Nf3 {[%clk 0:02:58]}  b6 {[%clk 0:02:54]} 4. g3 {[%clk 0:02:58]}  Ba6 {[%clk 0:02:52]} 5. b3 {[%clk 0:02:57]}  Bb4+ {[%clk 0:02:50]} 6. Bd2 {[%clk 0:02:56]}  Be7 {[%clk 0:02:51]} 7. Bc3 {[%clk 0:02:55]}  d5 {[%clk 0:02:51]} 8. Bg2 {[%clk 0:02:54]}  dxc4 {[%clk 0:02:50]} 9. Ne5 {[%clk 0:02:54]}  Nd5 {[%clk 0:02:48]} 10. bxc4 {[%clk 0:02:48]}  Nxc3 {[%clk 0:02:27]} 11. Nxc3 {[%clk 0:02:46]}  O-O {[%clk 0:02:27]} 12. Bxa8 {[%clk 0:02:45]}  c6 {[%clk 0:02:27]} 13. Nxc6 {[%clk 0:02:41]}  Nxc6 {[%clk 0:02:26]} 14. Bxc6 {[%clk 0:02:41]}  Bxc4 {[%clk 0:02:26]} 15. O-O {[%clk 0:02:39]}  Qc7 {[%clk 0:02:24]} 16. Be4 {[%clk 0:02:36]}  Rd8 {[%clk 0:02:23]} 17. Rc1 {[%clk 0:02:33]}  Bf6 {[%clk 0:02:23]} 18. Nb5 {[%clk 0:02:05]}  Qc8 {[%clk 0:02:22]} 19. Nxa7 {[%clk 0:02:01]}  Qa6 {[%clk 0:02:21]} 20. Nc6 {[%clk 0:01:59]}  Rd6 {[%clk 0:02:22]} 21. Qc2 {[%clk 0:01:38]}  Bxe2 {[%clk 0:02:19]} 22. Rfe1 {[%clk 0:01:34]}  Bb5 {[%clk 0:02:19]} 23. Nb4 {[%clk 0:01:34]}  Qa3 {[%clk 0:02:13]} 24. Bxh7+ {[%clk 0:01:31]}  Kh8 {[%clk 0:02:12]} 25. Rb1 {[%clk 0:01:08]}  Bxd4 {[%clk 0:02:07]} 26. Be4 {[%clk 0:01:06]}  g6 {[%clk 0:02:00]} 27. Qc8+ {[%clk 0:00:50]}  Kg7 {[%clk 0:02:00]} 28. Qc7 {[%clk 0:00:49]}  Bc5 {[%clk 0:01:51]} 29. Rb3 {[%clk 0:00:42]}  Qa5 {[%clk 0:01:44]} 30. Nc2 {[%clk 0:00:23]}  Rd2 {[%clk 0:01:34]} 31. Ne3 {[%clk 0:00:16]}  Qxa2 {[%clk 0:01:03]} 32. Rxb5 {[%clk 0:00:14]}  Rxf2 {[%clk 0:01:03]} 33. Qe5+ {[%clk 0:00:14]}  f6 {[%clk 0:01:00]} 34. Qc7+ {[%clk 0:00:12]}  Kh6 {[%clk 0:01:00]} 35. Rxc5 {[%clk 0:00:12]}  bxc5 {[%clk 0:00:58]} 36. Ng4+ {[%clk 0:00:12]}  Kg5 {[%clk 0:00:58]} 37. Nxf2 {[%clk 0:00:12]}  e5 {[%clk 0:00:56]} 38. Qxc5 {[%clk 0:00:12]}  Qd2 {[%clk 0:00:56]} 39. Qe3+ {[%clk 0:00:12]}  Qxe3 {[%clk 0:00:56]} 40. Rxe3 {[%clk 0:00:13]}  f5 {[%clk 0:00:57]} 41. Bxf5 {[%clk 0:00:13]}  gxf5 {[%clk 0:00:57]} 42. Kg2 {[%clk 0:00:13]}  Kf6 {[%clk 0:00:58]} 43. Ra3 {[%clk 0:00:13]}  e4 {[%clk 0:00:59]} 44. Nxe4+ {[%clk 0:00:13]}  fxe4 {[%clk 0:00:59]} 45. Re3 {[%clk 0:00:13]}  Ke5 {[%clk 0:00:59]} 46. Rxe4+ {[%clk 0:00:13]}  Kxe4 {[%clk 0:01:00]} 47. h4 {[%clk 0:00:13]}  Kf5 {[%clk 0:01:00]} 48. Kh3 {[%clk 0:00:14]}  Kg6 {[%clk 0:01:01]} 49. g4 {[%clk 0:00:14]}  Kh6 {[%clk 0:01:02]} 50. Kg3 {[%clk 0:00:14]}  Kg6 {[%clk 0:01:03]} 51. Kf4 {[%clk 0:00:15]}  Kh6 {[%clk 0:01:03]} 52. h5 {[%clk 0:00:15]}  Kg7 {[%clk 0:01:04]} 53. Kf5 {[%clk 0:00:16]}  Kh6 {[%clk 0:01:03]} 54. g5+ {[%clk 0:00:16]}  Kxh5 {[%clk 0:01:04]} 55. Kf6 {[%clk 0:00:17]}  Kg4 {[%clk 0:01:04]} 56. g6 {[%clk 0:00:17]}  Kf4 {[%clk 0:01:05]} 57. g7 {[%clk 0:00:18]} 1-0


[Site "https://www.chess.com"]

[Event "Titled Tuesday Blitz May 10 Early 2022"]
[White "Derraugh, Geordie"]
[Black "Barria Zuniga, Daniel"]
[WhiteFideId "2603950"]
[BlackFideId "3400816"]
[WhiteElo "2116"]
[BlackElo "2414"]
[Result "0-1"]
[Round "04"]
[TimeControl "180+1"]
[Date "2022.05.11"]
[WhiteClock "0:01:34"]
[BlackClock "0:01:29"]

1. e4 {[%clk 0:03:00]}  c5 {[%clk 0:02:51]} 2. c3 {[%clk 0:03:00]}  Nc6 {[%clk 0:02:50]} 3. d4 {[%clk 0:02:58]}  d5 {[%clk 0:02:50]} 4. exd5 {[%clk 0:02:58]}  Qxd5 {[%clk 0:02:50]} 5. Nf3 {[%clk 0:02:58]}  Bf5 {[%clk 0:02:49]} 6. Na3 {[%clk 0:02:57]}  cxd4 {[%clk 0:02:43]} 7. Bc4 {[%clk 0:02:54]}  Qe4+ {[%clk 0:02:43]} 8. Be3 {[%clk 0:02:54]}  O-O-O {[%clk 0:02:16]} 9. cxd4 {[%clk 0:02:48]}  e5 {[%clk 0:02:11]} 10. Ng5 {[%clk 0:02:39]}  Qxg2 {[%clk 0:02:09]} 11. Rf1 {[%clk 0:02:10]}  Bb4+ {[%clk 0:02:06]} 12. Bd2 {[%clk 0:02:09]}  Qxg5 {[%clk 0:01:54]} 13. Bxb4 {[%clk 0:02:10]}  Nxb4 {[%clk 0:01:54]} 14. Qb3 {[%clk 0:01:57]}  Nc6 {[%clk 0:01:37]} 15. Bd5 {[%clk 0:01:43]}  Nge7 {[%clk 0:01:34]} 16. Bxc6 {[%clk 0:01:36]}  Nxc6 {[%clk 0:01:33]} 17. d5 {[%clk 0:01:36]}  Nd4 {[%clk 0:01:32]} 18. Qc4+ {[%clk 0:01:35]}  Kb8 {[%clk 0:01:32]} 19. f4 {[%clk 0:01:35]}  Qh4+ {[%clk 0:01:31]} 20. Kd2 {[%clk 0:01:34]}  Qxh2+ {[%clk 0:01:29]} 0-1


[Site "https://www.chess.com"]

[Event "Titled Tuesday Blitz May 10 Early 2022"]
[White "Devaev, Alexander"]
[Black "Kwon, Sehyun"]
[WhiteFideId "4169395"]
[BlackFideId "13203088"]
[WhiteElo "2185"]
[BlackElo "1778"]
[Result "0-1"]
[Round "04"]
[TimeControl "180+1"]
[Date "2022.05.11"]
[WhiteClock "0:01:15"]
[BlackClock "0:00:12"]

1. d4 {[%clk 0:03:00]}  Nf6 {[%clk 0:03:00]} 2. c4 {[%clk 0:03:00]}  e6 {[%clk 0:03:00]} 3. Nf3 {[%clk 0:03:00]}  d5 {[%clk 0:03:00]} 4. cxd5 {[%clk 0:03:00]}  exd5 {[%clk 0:02:59]} 5. Nc3 {[%clk 0:03:00]}  Bb4 {[%clk 0:02:59]} 6. Bd2 {[%clk 0:02:51]}  O-O {[%clk 0:02:58]} 7. Rc1 {[%clk 0:02:50]}  Re8 {[%clk 0:02:59]} 8. a3 {[%clk 0:02:45]}  Bxc3 {[%clk 0:02:51]} 9. Bxc3 {[%clk 0:02:42]}  c6 {[%clk 0:02:42]} 10. Bd2 {[%clk 0:02:33]}  Bg4 {[%clk 0:02:23]} 11. Bg5 {[%clk 0:02:32]}  Nbd7 {[%clk 0:02:16]} 12. e3 {[%clk 0:02:31]}  Qa5+ {[%clk 0:02:08]} 13. Qd2 {[%clk 0:02:21]}  Qb6 {[%clk 0:02:08]} 14. Bd3 {[%clk 0:02:11]}  Ne4 {[%clk 0:01:43]} 15. Bxe4 {[%clk 0:01:54]}  dxe4 {[%clk 0:01:44]} 16. Ng1 {[%clk 0:01:50]}  h6 {[%clk 0:01:28]} 17. Bh4 {[%clk 0:01:46]}  Nf8 {[%clk 0:00:44]} 18. h3 {[%clk 0:01:43]}  Bf5 {[%clk 0:00:40]} 19. Ne2 {[%clk 0:01:40]}  Ng6 {[%clk 0:00:40]} 20. Bg3 {[%clk 0:01:40]}  Rad8 {[%clk 0:00:40]} 21. b4 {[%clk 0:01:32]}  Qa6 {[%clk 0:00:23]} 22. Rc3 {[%clk 0:01:32]}  Qd3 {[%clk 0:00:21]} 23. Rxd3 {[%clk 0:01:31]}  exd3 {[%clk 0:00:18]} 24. Nf4 {[%clk 0:01:27]}  Rxd4 {[%clk 0:00:16]} 25. Nxg6 {[%clk 0:01:26]}  Bxg6 {[%clk 0:00:17]} 26. O-O {[%clk 0:01:26]}  Rc4 {[%clk 0:00:17]} 27. Rc1 {[%clk 0:01:23]}  Rc2 {[%clk 0:00:16]} 28. Rxc2 {[%clk 0:01:17]}  dxc2 {[%clk 0:00:17]} 29. Be5 {[%clk 0:01:17]}  Rxe5 {[%clk 0:00:12]} 30. f3 {[%clk 0:01:15]}  Rd5 {[%clk 0:00:12]} 0-1


[Site "https://www.chess.com"]

[Event "Titled Tuesday Blitz May 10 Early 2022"]
[White "Dorokhin, Mykhailo"]
[Black "Liyanage, Ranindu Dilshan"]
[WhiteFideId "14114178"]
[BlackFideId "9915834"]
[WhiteElo "2280"]
[BlackElo "1858"]
[Result "0-1"]
[Round "04"]
[TimeControl "180+1"]
[Date "2022.05.11"]
[WhiteClock "0:00:20"]
[BlackClock "0:00:58"]

1. e4 {[%clk 0:03:00]}  e6 {[%clk 0:02:58]} 2. d4 {[%clk 0:02:59]}  d5 {[%clk 0:02:59]} 3. exd5 {[%clk 0:02:59]}  exd5 {[%clk 0:02:59]} 4. Nc3 {[%clk 0:03:00]}  Nf6 {[%clk 0:02:59]} 5. Bd3 {[%clk 0:02:57]}  c5 {[%clk 0:02:59]} 6. Bg5 {[%clk 0:02:56]}  c4 {[%clk 0:02:57]} 7. Be2 {[%clk 0:02:55]}  Be7 {[%clk 0:02:55]} 8. Nf3 {[%clk 0:02:55]}  Nc6 {[%clk 0:02:53]} 9. O-O {[%clk 0:02:43]}  h6 {[%clk 0:02:50]} 10. Bf4 {[%clk 0:02:43]}  O-O {[%clk 0:02:48]} 11. Re1 {[%clk 0:02:41]}  Bf5 {[%clk 0:02:41]} 12. Qd2 {[%clk 0:02:26]}  Qb6 {[%clk 0:02:32]} 13. Rab1 {[%clk 0:02:09]}  Bb4 {[%clk 0:02:29]} 14. a3 {[%clk 0:02:07]}  Ne4 {[%clk 0:02:25]} 15. Qe3 {[%clk 0:01:54]}  Bxc3 {[%clk 0:02:05]} 16. bxc3 {[%clk 0:01:54]}  Qa5 {[%clk 0:02:00]} 17. Bxh6 {[%clk 0:01:21]}  gxh6 {[%clk 0:01:46]} 18. Qxh6 {[%clk 0:01:20]}  Qxc3 {[%clk 0:01:25]} 19. Rxb7 {[%clk 0:01:11]}  Nxd4 {[%clk 0:01:17]} 20. Kf1 {[%clk 0:00:55]}  Nxe2 {[%clk 0:01:02]} 21. Rxe2 {[%clk 0:00:50]}  Rab8 {[%clk 0:01:03]} 22. Rxb8 {[%clk 0:00:20]}  Rxb8 {[%clk 0:01:04]} 23. Re1 {[%clk 0:00:20]}  Qxc2 {[%clk 0:00:59]} 24. Qf4 {[%clk 0:00:20]}  Qxf2# {[%clk 0:00:58]} 0-1


[Site "https://www.chess.com"]

[Event "Titled Tuesday Blitz May 10 Early 2022"]
[White "FGHSMN"]
[Black "Levitskiy, Andrey"]
[BlackFideId "14132885"]
[WhiteElo "2758"]
[BlackElo "2552"]
[Result "1-0"]
[Round "04"]
[TimeControl "180+1"]
[Date "2022.05.11"]
[WhiteClock "0:00:19"]
[BlackClock "0:00:02"]

1. c4 {[%clk 0:02:59]}  e5 {[%clk 0:02:59]} 2. Nf3 {[%clk 0:02:58]}  Nc6 {[%clk 0:02:57]} 3. d4 {[%clk 0:02:58]}  d6 {[%clk 0:02:35]} 4. Nc3 {[%clk 0:02:51]}  exd4 {[%clk 0:02:11]} 5. Nxd4 {[%clk 0:02:47]}  Be7 {[%clk 0:02:12]} 6. g3 {[%clk 0:02:43]}  Nf6 {[%clk 0:01:57]} 7. Bg2 {[%clk 0:02:41]}  Bd7 {[%clk 0:01:57]} 8. O-O {[%clk 0:02:40]}  O-O {[%clk 0:01:57]} 9. b3 {[%clk 0:02:37]}  Nxd4 {[%clk 0:01:55]} 10. Qxd4 {[%clk 0:02:37]}  Bc6 {[%clk 0:01:55]} 11. e4 {[%clk 0:02:37]}  Nd7 {[%clk 0:01:46]} 12. Bb2 {[%clk 0:02:36]}  Bf6 {[%clk 0:01:46]} 13. Qd2 {[%clk 0:02:36]}  Re8 {[%clk 0:01:36]} 14. Rfe1 {[%clk 0:02:24]}  a5 {[%clk 0:01:32]} 15. Rad1 {[%clk 0:02:08]}  Nc5 {[%clk 0:01:28]} 16. f4 {[%clk 0:02:03]}  Qe7 {[%clk 0:00:57]} 17. Nd5 {[%clk 0:01:48]}  Bxd5 {[%clk 0:00:56]} 18. exd5 {[%clk 0:01:49]}  Qd7 {[%clk 0:00:52]} 19. Bxf6 {[%clk 0:01:48]}  gxf6 {[%clk 0:00:53]} 20. h3 {[%clk 0:01:39]}  b6 {[%clk 0:00:46]} 21. Kh2 {[%clk 0:01:37]}  Rxe1 {[%clk 0:00:46]} 22. Rxe1 {[%clk 0:01:36]}  Re8 {[%clk 0:00:47]} 23. g4 {[%clk 0:01:32]}  Kf8 {[%clk 0:00:39]} 24. Rf1 {[%clk 0:01:05]}  Qe7 {[%clk 0:00:36]} 25. Qf2 {[%clk 0:01:05]}  Qe3 {[%clk 0:00:34]} 26. Qh4 {[%clk 0:01:04]}  Kg7 {[%clk 0:00:31]} 27. g5 {[%clk 0:01:04]}  f5 {[%clk 0:00:21]} 28. Qh6+ {[%clk 0:00:53]}  Kg8 {[%clk 0:00:21]} 29. Qf6 {[%clk 0:00:50]}  Qd3 {[%clk 0:00:16]} 30. Rf3 {[%clk 0:00:45]}  Qc2 {[%clk 0:00:14]} 31. h4 {[%clk 0:00:36]}  Nd7 {[%clk 0:00:12]} 32. Qh6 {[%clk 0:00:20]}  Re2 {[%clk 0:00:09]} 33. Rg3 {[%clk 0:00:20]}  Nf8 {[%clk 0:00:05]} 34. h5 {[%clk 0:00:21]}  Qd2 {[%clk 0:00:04]} 35. Qf6 {[%clk 0:00:18]}  Qxf4 {[%clk 0:00:04]} 36. h6 {[%clk 0:00:18]}  Qh4+ {[%clk 0:00:03]} 37. Kg1 {[%clk 0:00:19]}  Re1+ {[%clk 0:00:02]} 38. Kf2 {[%clk 0:00:19]}  Re2+ {[%clk 0:00:02]} 39. Kxe2 {[%clk 0:00:19]}  Qh5+ {[%clk 0:00:02]} 40. Kf2 {[%clk 0:00:19]}  Qxg5 {[%clk 0:00:02]} 41. Rxg5+ {[%clk 0:00:19]} 1-0


[Site "https://www.chess.com"]

[Event "Titled Tuesday Blitz May 10 Early 2022"]
[White "Fedoseev, Vladimir"]
[Black "Arabidze, Meri"]
[WhiteFideId "24130737"]
[BlackFideId "13604040"]
[WhiteElo "2726"]
[BlackElo "2335"]
[Result "1/2-1/2"]
[Round "04"]
[TimeControl "180+1"]
[Date "2022.05.10"]
[WhiteClock "0:00:07"]
[BlackClock "0:00:03"]

1. d4 {[%clk 0:03:00]}  f5 {[%clk 0:02:59]} 2. Nc3 {[%clk 0:02:57]}  Nf6 {[%clk 0:02:59]} 3. Bg5 {[%clk 0:02:56]}  d5 {[%clk 0:02:59]} 4. e3 {[%clk 0:02:51]}  c6 {[%clk 0:02:58]} 5. Bd3 {[%clk 0:02:49]}  Qb6 {[%clk 0:02:52]} 6. Rb1 {[%clk 0:02:46]}  g6 {[%clk 0:02:48]} 7. Bxf6 {[%clk 0:02:42]}  exf6 {[%clk 0:02:48]} 8. h4 {[%clk 0:02:42]}  h5 {[%clk 0:02:35]} 9. Nge2 {[%clk 0:02:35]}  Be6 {[%clk 0:02:35]} 10. a3 {[%clk 0:02:31]}  Nd7 {[%clk 0:02:24]} 11. b4 {[%clk 0:02:26]}  Qc7 {[%clk 0:02:18]} 12. Na4 {[%clk 0:02:19]}  Bf7 {[%clk 0:02:07]} 13. c3 {[%clk 0:02:16]}  b5 {[%clk 0:01:56]} 14. Nc5 {[%clk 0:02:13]}  a5 {[%clk 0:01:50]} 15. Qc2 {[%clk 0:02:12]}  Bxc5 {[%clk 0:01:44]} 16. bxc5 {[%clk 0:02:09]}  a4 {[%clk 0:01:38]} 17. Nf4 {[%clk 0:02:05]}  Nf8 {[%clk 0:01:36]} 18. Kd2 {[%clk 0:02:00]}  Ne6 {[%clk 0:01:36]} 19. Nxe6 {[%clk 0:01:38]}  Bxe6 {[%clk 0:01:37]} 20. g3 {[%clk 0:01:38]}  O-O {[%clk 0:01:30]} 21. Rb4 {[%clk 0:01:38]}  Kg7 {[%clk 0:01:29]} 22. Qd1 {[%clk 0:01:36]}  Rae8 {[%clk 0:01:23]} 23. Qf3 {[%clk 0:01:36]}  Qd7 {[%clk 0:01:16]} 24. Qf4 {[%clk 0:01:36]}  Rc8 {[%clk 0:01:10]} 25. f3 {[%clk 0:01:35]}  Qc7 {[%clk 0:01:09]} 26. Qxc7+ {[%clk 0:01:30]}  Rxc7 {[%clk 0:01:10]} 27. e4 {[%clk 0:01:30]}  fxe4 {[%clk 0:00:57]} 28. fxe4 {[%clk 0:01:31]}  f5 {[%clk 0:00:55]} 29. e5 {[%clk 0:01:00]}  f4 {[%clk 0:00:53]} 30. Rg1 {[%clk 0:00:50]}  fxg3 {[%clk 0:00:26]} 31. Rxg3 {[%clk 0:00:50]}  Bf5 {[%clk 0:00:26]} 32. Rb1 {[%clk 0:00:48]}  Bxd3 {[%clk 0:00:25]} 33. Kxd3 {[%clk 0:00:49]}  Rcf7 {[%clk 0:00:24]} 34. Ke3 {[%clk 0:00:49]}  Kh6 {[%clk 0:00:12]} 35. Rbg1 {[%clk 0:00:49]}  Rg8 {[%clk 0:00:12]} 36. Rf3 {[%clk 0:00:45]}  Rxf3+ {[%clk 0:00:10]} 37. Kxf3 {[%clk 0:00:46]}  Rf8+ {[%clk 0:00:10]} 38. Ke3 {[%clk 0:00:45]}  Kg7 {[%clk 0:00:09]} 39. c4 {[%clk 0:00:36]}  bxc4 {[%clk 0:00:07]} 40. Rb1 {[%clk 0:00:37]}  g5 {[%clk 0:00:06]} 41. hxg5 {[%clk 0:00:30]}  Kg6 {[%clk 0:00:07]} 42. Rb6 {[%clk 0:00:30]}  Kxg5 {[%clk 0:00:04]} 43. Rxc6 {[%clk 0:00:29]}  h4 {[%clk 0:00:04]} 44. Rc7 {[%clk 0:00:27]}  h3 {[%clk 0:00:03]} 45. Rg7+ {[%clk 0:00:26]}  Kh4 {[%clk 0:00:03]} 46. Rh7+ {[%clk 0:00:20]}  Kg3 {[%clk 0:00:04]} 47. Rg7+ {[%clk 0:00:20]}  Kh4 {[%clk 0:00:04]} 48. e6 {[%clk 0:00:18]}  h2 {[%clk 0:00:03]} 49. e7 {[%clk 0:00:18]}  Re8 {[%clk 0:00:03]} 50. Kf4 {[%clk 0:00:17]}  Kh3 {[%clk 0:00:02]} 51. Rg3+ {[%clk 0:00:17]}  Kh4 {[%clk 0:00:02]} 52. Rg7 {[%clk 0:00:16]}  Kh3 {[%clk 0:00:02]} 53. Rg3+ {[%clk 0:00:07]}  Kh4 {[%clk 0:00:02]} 54. Rg4+ {[%clk 0:00:08]}  Kh3 {[%clk 0:00:03]} 55. Rg3+ {[%clk 0:00:07]} 1/2-1/2


[Site "https://www.chess.com"]

[Event "Titled Tuesday Blitz May 10 Early 2022"]
[White "Gallego Alcaraz, Andres Felipe"]
[Black "Baches Garcia, Guillermo"]
[WhiteFideId "4402669"]
[BlackFideId "2209764"]
[WhiteElo "2340"]
[BlackElo "2508"]
[Result "0-1"]
[Round "04"]
[TimeControl "180+1"]
[Date "2022.05.11"]
[WhiteClock "0:02:13"]
[BlackClock "0:01:27"]

1. d4 {[%clk 0:03:00]}  Nf6 {[%clk 0:02:58]} 2. c4 {[%clk 0:03:01]}  e6 {[%clk 0:02:58]} 3. Nf3 {[%clk 0:03:01]}  d5 {[%clk 0:02:58]} 4. g3 {[%clk 0:03:02]}  Be7 {[%clk 0:02:58]} 5. Bg2 {[%clk 0:03:03]}  O-O {[%clk 0:02:59]} 6. O-O {[%clk 0:03:03]}  dxc4 {[%clk 0:02:59]} 7. Ne5 {[%clk 0:03:02]}  c5 {[%clk 0:02:58]} 8. dxc5 {[%clk 0:02:59]}  Qc7 {[%clk 0:02:58]} 9. Nxc4 {[%clk 0:02:57]}  Qxc5 {[%clk 0:02:56]} 10. Qb3 {[%clk 0:02:56]}  Nc6 {[%clk 0:02:48]} 11. Be3 {[%clk 0:02:53]}  Qh5 {[%clk 0:02:47]} 12. h3 {[%clk 0:02:34]}  e5 {[%clk 0:02:42]} 13. g4 {[%clk 0:02:34]}  Bxg4 {[%clk 0:02:31]} 14. hxg4 {[%clk 0:02:35]}  Nxg4 {[%clk 0:02:31]} 15. Rd1 {[%clk 0:02:27]}  Nd4 {[%clk 0:02:08]} 16. Bxd4 {[%clk 0:02:22]}  exd4 {[%clk 0:02:09]} 17. Qg3 {[%clk 0:02:21]}  Bh4 {[%clk 0:02:01]} 18. Qh3 {[%clk 0:02:14]}  Bxf2+ {[%clk 0:01:54]} 19. Kf1 {[%clk 0:02:14]}  Qf5 {[%clk 0:01:36]} 20. Bf3 {[%clk 0:02:13]}  Ne3+ {[%clk 0:01:27]} 0-1


[Site "https://www.chess.com"]

[Event "Titled Tuesday Blitz May 10 Early 2022"]
[White "Gatterer, Florian"]
[Black "Miszler, Levente"]
[WhiteFideId "811688"]
[BlackFideId "763276"]
[WhiteElo "2218"]
[BlackElo "1966"]
[Result "1-0"]
[Round "04"]
[TimeControl "180+1"]
[Date "2022.05.11"]
[WhiteClock "0:00:15"]
[BlackClock "0:00:05"]

1. c4 {[%clk 0:03:00]}  e5 {[%clk 0:02:54]} 2. Nc3 {[%clk 0:02:59]}  Nc6 {[%clk 0:02:53]} 3. Nf3 {[%clk 0:02:59]}  g6 {[%clk 0:02:51]} 4. d4 {[%clk 0:02:59]}  exd4 {[%clk 0:02:51]} 5. Nxd4 {[%clk 0:02:58]}  Bg7 {[%clk 0:02:52]} 6. Nxc6 {[%clk 0:02:58]}  bxc6 {[%clk 0:02:51]} 7. Qd2 {[%clk 0:02:56]}  Ne7 {[%clk 0:02:51]} 8. g3 {[%clk 0:02:56]}  O-O {[%clk 0:02:51]} 9. Bg2 {[%clk 0:02:56]}  Rb8 {[%clk 0:02:50]} 10. b3 {[%clk 0:02:54]}  c5 {[%clk 0:02:48]} 11. Bb2 {[%clk 0:02:50]}  d6 {[%clk 0:02:45]} 12. O-O {[%clk 0:02:49]}  Bb7 {[%clk 0:02:45]} 13. Bxb7 {[%clk 0:02:44]}  Rxb7 {[%clk 0:02:45]} 14. Rad1 {[%clk 0:02:42]}  Nc6 {[%clk 0:02:38]} 15. Nd5 {[%clk 0:02:32]}  f5 {[%clk 0:02:03]} 16. Bxg7 {[%clk 0:02:21]}  Kxg7 {[%clk 0:02:04]} 17. Rfe1 {[%clk 0:02:14]}  Qe8 {[%clk 0:01:53]} 18. Qc3+ {[%clk 0:02:07]}  Qe5 {[%clk 0:01:52]} 19. f4 {[%clk 0:01:58]}  Qxc3 {[%clk 0:01:50]} 20. Nxc3 {[%clk 0:01:59]}  Re8 {[%clk 0:01:46]} 21. e4 {[%clk 0:01:58]}  fxe4 {[%clk 0:01:45]} 22. Nxe4 {[%clk 0:01:52]}  Nd4 {[%clk 0:01:42]} 23. Kf2 {[%clk 0:01:47]}  Rbb8 {[%clk 0:01:39]} 24. Nc3 {[%clk 0:01:44]}  c6 {[%clk 0:01:36]} 25. h3 {[%clk 0:01:42]}  Kf7 {[%clk 0:01:25]} 26. Rxe8 {[%clk 0:01:41]}  Rxe8 {[%clk 0:01:26]} 27. Re1 {[%clk 0:01:41]}  Rxe1 {[%clk 0:01:25]} 28. Kxe1 {[%clk 0:01:40]}  Ke6 {[%clk 0:01:25]} 29. Kf2 {[%clk 0:01:38]}  d5 {[%clk 0:01:24]} 30. g4 {[%clk 0:01:29]}  Nc2 {[%clk 0:01:11]} 31. Na4 {[%clk 0:01:20]}  Kd6 {[%clk 0:01:09]} 32. Nb2 {[%clk 0:01:19]}  Nb4 {[%clk 0:01:00]} 33. a3 {[%clk 0:01:15]}  Nc2 {[%clk 0:01:00]} 34. a4 {[%clk 0:01:15]}  Nd4 {[%clk 0:01:00]} 35. Kg3 {[%clk 0:00:58]}  Nxb3 {[%clk 0:00:59]} 36. Kh4 {[%clk 0:00:58]}  Nd2 {[%clk 0:00:57]} 37. Kg5 {[%clk 0:00:56]}  Nxc4 {[%clk 0:00:51]} 38. Nd1 {[%clk 0:00:51]}  d4 {[%clk 0:00:49]} 39. Kh6 {[%clk 0:00:51]}  Ne3 {[%clk 0:00:49]} 40. Nf2 {[%clk 0:00:46]}  Ng2 {[%clk 0:00:48]} 41. f5 {[%clk 0:00:45]}  gxf5 {[%clk 0:00:47]} 42. gxf5 {[%clk 0:00:45]}  Ke5 {[%clk 0:00:34]} 43. Kg5 {[%clk 0:00:43]}  c4 {[%clk 0:00:30]} 44. f6 {[%clk 0:00:31]}  Ke6 {[%clk 0:00:26]} 45. Ne4 {[%clk 0:00:20]}  c3 {[%clk 0:00:04]} 46. Nc5+ {[%clk 0:00:20]}  Kf7 {[%clk 0:00:04]} 47. Nd3 {[%clk 0:00:20]}  c5 {[%clk 0:00:04]} 48. Kf5 {[%clk 0:00:19]}  c4 {[%clk 0:00:04]} 49. Ne5+ {[%clk 0:00:19]}  Kf8 {[%clk 0:00:05]} 50. Nd7+ {[%clk 0:00:18]}  Kf7 {[%clk 0:00:05]} 51. Ne5+ {[%clk 0:00:18]}  Kf8 {[%clk 0:00:05]} 52. Nd7+ {[%clk 0:00:17]}  Ke8 {[%clk 0:00:05]} 53. Ne5 {[%clk 0:00:15]}  c2 {[%clk 0:00:05]} 54. f7+ {[%clk 0:00:15]}  Kf8 {[%clk 0:00:06]} 55. Kf6 {[%clk 0:00:16]}  c1=Q {[%clk 0:00:05]} 56. Nd7# {[%clk 0:00:15]} 1-0


[Site "https://www.chess.com"]

[Event "Titled Tuesday Blitz May 10 Early 2022"]
[White "Goltsev, Dmitry"]
[Black "Tymrakiewicz, Rafal"]
[WhiteFideId "24176710"]
[BlackFideId "1108832"]
[WhiteElo "2258"]
[BlackElo "2205"]
[Result "0-1"]
[Round "04"]
[TimeControl "180+1"]
[Date "2022.05.11"]
[WhiteClock "0:00:48"]
[BlackClock "0:00:07"]

1. e4 {[%clk 0:03:00]}  Nf6 {[%clk 0:03:00]} 2. e5 {[%clk 0:02:59]}  Nd5 {[%clk 0:03:00]} 3. d4 {[%clk 0:03:00]}  d6 {[%clk 0:03:01]} 4. c4 {[%clk 0:03:00]}  Nb6 {[%clk 0:03:01]} 5. exd6 {[%clk 0:03:00]}  cxd6 {[%clk 0:03:02]} 6. Nc3 {[%clk 0:03:01]}  g6 {[%clk 0:03:02]} 7. Nf3 {[%clk 0:03:00]}  Bg7 {[%clk 0:03:02]} 8. h3 {[%clk 0:03:01]}  O-O {[%clk 0:03:02]} 9. Be3 {[%clk 0:03:01]}  Bf5 {[%clk 0:02:57]} 10. Be2 {[%clk 0:03:01]}  d5 {[%clk 0:02:57]} 11. c5 {[%clk 0:03:00]}  Nc4 {[%clk 0:02:57]} 12. Bxc4 {[%clk 0:02:58]}  dxc4 {[%clk 0:02:58]} 13. Qa4 {[%clk 0:02:58]}  Bd3 {[%clk 0:02:54]} 14. O-O-O {[%clk 0:02:58]}  Nc6 {[%clk 0:02:46]} 15. d5 {[%clk 0:02:50]}  Ne5 {[%clk 0:02:22]} 16. Nd2 {[%clk 0:02:40]}  Bf5 {[%clk 0:02:06]} 17. Nxc4 {[%clk 0:02:35]}  Nd3+ {[%clk 0:02:06]} 18. Kd2 {[%clk 0:02:34]}  b5 {[%clk 0:01:27]} 19. Qxb5 {[%clk 0:02:23]}  Rb8 {[%clk 0:01:24]} 20. Qc6 {[%clk 0:02:17]}  Nxb2 {[%clk 0:01:20]} 21. Qa6 {[%clk 0:02:10]}  Bd3 {[%clk 0:01:10]} 22. Rb1 {[%clk 0:02:02]}  Bxc4 {[%clk 0:01:03]} 23. Qxa7 {[%clk 0:02:01]}  Bxd5 {[%clk 0:00:57]} 24. Kc2 {[%clk 0:01:56]}  Be4+ {[%clk 0:00:47]} 25. Nxe4 {[%clk 0:01:39]}  Qd3+ {[%clk 0:00:46]} 26. Kc1 {[%clk 0:01:39]}  Qxe4 {[%clk 0:00:34]} 27. Qa6 {[%clk 0:01:40]}  Rfd8 {[%clk 0:00:20]} 28. Qa5 {[%clk 0:01:02]}  Nd3+ {[%clk 0:00:11]} 29. Kd2 {[%clk 0:01:01]}  Nxf2+ {[%clk 0:00:11]} 30. Ke2 {[%clk 0:01:01]}  Nxh1 {[%clk 0:00:09]} 31. Re1 {[%clk 0:00:49]}  Rb2+ {[%clk 0:00:07]} 32. Kf1 {[%clk 0:00:48]}  Qxg2# {[%clk 0:00:07]} 0-1


[Site "https://www.chess.com"]